bitfinex-derivatives/quotes_ETHF0:USTF0_20240904
["timestamp","ask_amount","ask_price","bid_price","bid_amount"]
[1725441267068,0.41671,2400.1,2400.0,0.41671]
[1725441267270,0.41671,2400.1,2399.8,3.2078]
[1725441267271,0.41674,2399.9,2399.8,3.2078]
[1725441267975,1.19534,2399.9,2399.8,3.2078]
[1725441269272,0.41678,2399.7,2399.6,0.3899]
[1725441271972,0.3706,2399.8,2399.7,0.41678]
[1725441272172,1.19535,2399.9,2399.4,4.68666]
[1725441272570,0.3868,2400.0,2399.5,1.04202]
[1725441272782,0.92058584,2400.1,2399.9,0.41674]
[1725441272982,0.41672,2400.0,2399.9,0.41674]
[1725441273676,1.30738584,2400.1,2399.7,0.3806]
[1725441274077,0.41673,2400.0,2399.9,0.41673]
[1725441277183,0.41673,2400.0,2399.7,0.3806]
[1725441277184,0.41673,2400.0,2399.8,0.41675]
[1725441278074,0.41676,2399.8,2399.7,0.79737]
[1725441278276,1.42859,2400.1,2399.4,3.2547]
[1725441278277,1.04186,2399.9,2399.5,0.41681]
[1725441278478,0.41679,2399.6,2399.5,0.41681]
[1725441279279,0.41681,2399.5,2399.4,0.41682]
[1725441279681,0.41682,2399.5,2399.4,0.41682]
[1725441280186,0.4168,2399.6,2399.5,0.41679]
[1725441280392,0.41681,2399.5,2399.4,0.41682]
[1725441280683,0.4168,2399.6,2399.5,0.41681]
[1725441285882,0.41682,2399.5,2399.4,0.41682]
[1725441286085,0.4168,2399.6,2399.5,0.4168]
[1725441286283,0.80199,2399.7,2399.6,0.41679]
[1725441286785,0.80199,2399.7,2399.5,0.4168]
[1725441287281,0.41679,2399.6,2399.5,0.4168]
[1725441287491,0.41679,2399.6,2399.3,3.9684]
[1725441287674,0.41679,2399.7,2399.5,0.41681]
[1725441287873,4.24964,2400.0,2399.5,0.41681]
[1725441287874,0.41673,2400.0,2399.9,0.41674]
[1725441288080,0.63924936,2400.0,2399.9,0.41674]
[1725441288479,0.209,2400.9,2400.0,4.1664]
[1725441288793,0.3599,2401.1,2400.6,3.62441]
[1725441289093,0.77644,2401.1,2400.6,3.62441]
[1725441289281,0.77644,2401.1,2400.7,0.41659]
[1725441289481,0.77644,2401.1,2400.7,0.42283532]
[1725441289482,0.78268532,2401.1,2400.7,0.42283532]
[1725441290587,0.36614532,2401.1,2400.7,0.42283532]
[1725441291491,0.78267532,2401.1,2400.7,0.42283532]
[1725441292191,0.41655,2401.0,2400.7,0.42283532]
[1725441295794,0.41655,2401.0,2400.7,0.80743532]
[1725441296491,0.78268532,2401.1,2400.7,0.80743532]
[1725441297185,0.41655,2401.0,2400.7,0.80743532]
[1725441297792,0.41655,2401.0,2400.7,0.39084532]
[1725441297990,0.41655,2401.0,2400.7,0.80744532]
[1725441300595,0.78268532,2401.1,2400.7,0.80744532]
[1725441300794,0.78268532,2401.1,2400.8,0.3718]
[1725441300995,0.41655,2401.0,2400.8,0.3718]
[1725441305795,0.41655,2401.0,2400.8,0.78838]
[1725441306302,0.78269532,2401.1,2400.8,1.17188]
[1725441306797,0.41655,2401.0,2400.8,1.17188]
[1725441306996,0.78269532,2401.1,2400.8,1.17188]
[1725441307395,0.41655,2401.0,2400.8,1.17188]
[1725441307596,0.78268532,2401.1,2400.8,1.17188]
[1725441311301,0.78268532,2401.1,2400.8,0.7553]
[1725441311498,0.78268532,2401.1,2400.9,0.41656]
[1725441311890,0.78268532,2401.1,2400.8,1.17187]
[1725441312109,0.78268532,2401.1,2400.9,1.2]
[1725441312402,0.78268532,2401.1,2400.9,1.61656]
[1725441312605,0.78268532,2401.1,2400.9,1.2]
[1725441312793,0.78268532,2401.1,2400.9,1.61657]
[1725441313796,0.00624532,2401.1,2400.9,1.61657]
[1725441314201,0.00624532,2401.1,2401.0,0.41655]
[1725441314797,0.00624532,2401.1,2401.0,3.62435]
[1725441315002,0.00624532,2401.1,2401.0,4.66573]
[1725441315206,0.00624532,2401.1,2401.0,8.83053]
[1725441315807,0.00624532,2401.1,2401.0,3.62435]
[1725441315995,0.00624532,2401.1,2401.0,4.82435]
[1725441319705,0.00624532,2401.1,2401.0,1.61655]
[1725441323209,0.00624532,2401.1,2400.9,3.2078]
[1725441323406,0.42279532,2401.1,2401.0,1.2]
[1725441324012,0.00624532,2401.1,2400.8,1.9553]
[1725441324213,0.41657,2400.9,2400.8,1.9553]
[1725441324403,0.41657,2400.9,2400.8,0.7553]
[1725441324603,0.41657,2400.9,2400.8,1.5718]
[1725441326812,0.38,2401.0,2400.8,1.5718]
[1725441326813,0.79656,2401.0,2400.8,1.5718]
[1725441327108,0.41657,2400.9,2400.8,1.5718]
[1725441328218,0.79656,2401.0,2400.8,1.5718]
[1725441330117,0.00624532,2401.1,2401.0,0.41655]
[1725441330502,0.00624532,2401.1,2401.0,1.61655]
[1725441334717,0.00624532,2401.1,2401.0,2.70701362]
[1725441335222,0.00624532,2401.1,2401.0,3.74839362]
[1725441335411,0.00624532,2401.1,2401.0,2.54839362]
[1725441335610,0.00624532,2401.1,2401.0,3.74839362]
[1725441337411,0.00624532,2401.1,2401.0,2.70701362]
[1725441338914,0.00624532,2401.1,2401.0,1.50701362]
[1725441339206,0.00624532,2401.1,2400.9,3.595]
[1725441339207,0.00624532,2401.1,2400.9,4.795]
[1725441339406,0.41656,2401.0,2400.7,1.59084532]
[1725441339615,0.7454,2400.9,2400.7,0.39084532]
[1725441339807,1.16197,2400.9,2400.7,1.59084532]
[1725441340213,0.22256347,2400.8,2400.7,1.59084532]
[1725441340412,0.7454,2400.9,2400.7,2.00744532]
[1725441341018,1.16197,2400.9,2400.7,1.59084532]
[1725441341212,0.22258962,2400.8,2400.7,1.20624532]
[1725441341408,0.22258962,2400.8,2400.7,1.62284532]
[1725441341613,0.7454,2400.9,2400.7,1.62284532]
[1725441342022,0.22260398,2400.8,2400.7,1.20624532]
[1725441342914,5.84626398,2400.8,2400.7,0.00624532]
[1725441343113,11.22706122,2400.8,2400.2,0.51368]
[1725441343413,11.22706122,2400.8,2400.4,1.2]
[1725441343414,0.41663,2400.6,2400.4,1.2]
[1725441343717,0.22260398,2400.5,2400.4,1.2]
[1725441343923,0.60310398,2400.5,2400.4,1.61665]
[1725441344113,4.5461,2400.5,2400.2,3.57274532]
[1725441344315,0.41667,2400.4,2400.3,1.2]
[1725441344507,0.78527,2400.4,2400.3,1.2]
[1725441346014,0.3805,2400.5,2400.3,1.61667]
[1725441346426,0.79714,2400.5,2400.3,1.61667]
[1725441347309,0.79714,2400.5,2400.3,0.41667]
[1725441347514,1.45836,2400.3,2400.2,0.00624532]
[1725441347821,0.41673,2400.0,2399.7,0.097]
[1725441348117,0.3888,2399.9,2399.8,1.61676]
[1725441348321,1.33725584,2400.3,2399.8,4.4078]
[1725441348525,1.72605584,2400.3,2400.2,1.2]
[1725441348715,0.80547,2400.3,2400.2,1.2]
[1725441349022,0.61134532,2400.3,2400.2,1.2]
[1725441349224,0.80547,2400.3,2400.2,1.2]
[1725441349621,0.3888,2400.3,2400.2,1.2]
[1725441349919,0.80547,2400.3,2400.2,1.2]
[1725441350117,0.3888,2400.3,2400.2,1.2]
[1725441353024,0.41664,2400.5,2400.2,1.61669]
[1725441353222,0.79854,2400.5,2400.4,1.2]
[1725441353519,0.3819,2400.5,2400.4,1.2]
[1725441353709,0.3819,2400.5,2400.4,1.5727]
[1725441353913,0.79854,2400.5,2400.4,1.5727]
[1725441355820,0.79854,2400.5,2400.4,0.3727]
[1725441356015,0.41665,2400.4,2400.3,1.9617]
[1725441356512,0.41665,2400.4,2400.3,1.584]
[1725441360812,0.41671,2400.1,2400.0,3.21404532]
[1725441361013,6.90805,2400.1,2400.0,0.00624532]
[1725441361223,17.07445,2400.1,2400.0,0.00624532]
[1725441361522,1.45873,2399.7,2399.6,0.097]
[1725441361722,0.41688,2399.1,2399.0,1.6653]
[1725441361922,0.41688,2399.1,2399.0,1.5683]
[1725441363920,0.41688,2399.1,2399.0,3.2483]
[1725441364536,0.41688,2399.1,2399.0,2.88]
[1725441365632,0.41692,2398.9,2398.8,0.00416352]
[1725441367637,0.00624532,2399.3,2399.1,0.41687]
[1725441367832,0.41686,2399.2,2399.1,2.88]
[1725441368733,0.00624532,2399.3,2399.1,2.88]
[1725441368935,0.00624532,2399.3,2399.1,3.68107]
[1725441369236,0.42309532,2399.3,2399.2,0.3742]
[1725441369536,0.41686,2399.2,2399.1,0.3842]
[1725441371032,0.42309532,2399.3,2399.1,3.68107]
[1725441371234,0.42309532,2399.3,2399.2,0.3742]
[1725441374244,0.41686,2399.2,2399.1,0.3842]
[1725441375546,0.42310532,2399.3,2399.1,0.3842]
[1725441376140,0.41686,2399.2,2399.1,0.3842]
[1725441376438,0.00624532,2399.3,2399.1,3.68107]
[1725441376634,0.00624532,2399.3,2399.1,4.04787]
[1725441377042,0.00624532,2399.3,2399.2,0.41686]
[1725441377231,0.00624532,2399.3,2399.1,4.04787]
[1725441377435,0.00624532,2399.3,2399.2,0.41686]
[1725441377633,0.00624532,2399.3,2399.1,3.631]
[1725441377844,0.00624532,2399.3,2399.1,4.04787]
[1725441378438,0.00624532,2399.3,2399.2,0.41686]
[1725441379150,0.00624532,2399.3,2399.1,4.04787]
[1725441379340,0.00624532,2399.3,2399.2,0.41686]
[1725441379944,0.00624532,2399.3,2399.2,4.58486]
[1725441383743,0.00624532,2399.3,2399.2,5.62703]
[1725441384045,1.43433584,2399.9,2399.6,0.41678]
[1725441384248,0.41675,2399.9,2399.6,3.29678]
[1725441384837,3.596,2400.3,2399.6,2.88]
[1725441385141,3.596,2400.3,2399.8,3.29674]
[1725441385142,0.41672,2400.1,2399.8,3.29674]
[1725441385738,1.43289532,2400.2,2399.8,2.88]
[1725441385944,1.43289532,2400.2,2399.7,2.00077]
[1725441386242,0.41676,2399.8,2399.7,1.584]
[1725441386645,0.41676,2399.8,2399.7,0.384]
[1725441387041,0.77526,2399.8,2399.7,0.384]
[1725441387746,0.77526,2399.8,2399.4,3.2078]
[1725441387747,11.7257,2399.8,2399.4,3.2078]
[1725441388047,1.45885,2399.5,2399.4,3.2078]
[1725441388348,0.41686,2399.2,2399.0,0.3795]
[1725441388643,1.04204,2399.5,2399.0,0.3795]
[1725441388644,0.41686,2399.3,2399.0,0.3795]
[1725441388846,0.41687,2399.2,2399.0,0.3795]
[1725441389147,0.41686,2399.3,2399.0,0.3795]
[1725441389455,1.04204,2399.5,2399.0,0.3795]
[1725441389456,0.41687,2399.2,2399.0,0.3795]
[1725441390352,0.41686,2399.3,2399.0,0.3795]
[1725441390551,0.41685,2399.4,2399.0,3.67639]
[1725441390751,0.41685,2399.3,2399.0,3.67639]
[1725441392943,0.92058584,2399.6,2399.0,3.2595]
[1725441392944,0.41684,2399.4,2399.0,3.2595]
[1725441393139,1.33738584,2399.6,2399.2,0.41685]
[1725441393342,0.92058584,2399.6,2399.0,3.2595]
[1725441393650,0.92058584,2399.6,2399.1,0.41687]
[1725441393846,0.41683,2399.4,2399.1,0.41687]
[1725441394651,0.92058584,2399.6,2399.0,3.67639]
[1725441394652,0.41685,2399.3,2399.0,3.67639]
[1725441394951,0.41684,2399.4,2399.1,0.41688]
[1725441396850,0.41685,2399.3,2399.0,3.67639]
[1725441397259,0.41685,2399.3,2399.1,0.41688]
[1725441397757,0.41686,2399.3,2399.0,3.67639]
[1725441398758,0.41686,2399.3,2399.1,0.41688]
[1725441399157,0.41684,2399.4,2399.2,0.41686]
[1725441399359,0.41682,2399.5,2399.3,0.41685]
[1725441399861,0.92058584,2399.6,2399.2,6.0878]
[1725441400049,0.92058584,2399.9,2399.5,2.88]
[1725441400249,1.0418,2400.1,2399.6,0.3689]
[1725441400449,1.0418,2400.1,2399.6,0.78569]
[1725441400450,0.41676,2399.8,2399.6,0.78569]
[1725441401161,0.41675,2399.9,2399.7,0.41677]
[1725441401560,0.41675,2399.9,2399.6,0.78568]
[1725441402169,0.41675,2399.9,2399.7,0.41677]
[1725441404063,0.41673,2400.0,2399.8,0.41676]
[1725441404264,1.67193116,2400.2,2400.0,0.41672]
[1725441404567,1.67193116,2400.2,2399.7,2.88]
[1725441404568,0.41672,2400.0,2399.7,3.29677]
[1725441405064,0.75134532,2400.2,2399.7,2.88]
[1725441405267,0.75134532,2400.2,2399.8,0.41674]
[1725441405268,0.41671,2400.1,2399.8,0.41674]
[1725441405463,0.75134532,2400.2,2399.7,3.251]
[1725441405670,0.75134532,2400.2,2400.0,0.41672]
[1725441405671,0.39374532,2400.2,2400.0,0.41672]
[1725441405873,0.39374532,2400.2,2400.1,0.7323]
[1725441406068,0.00624532,2400.2,2400.1,1.14901]
[1725441406268,0.41671,2400.1,2399.9,2.88]
[1725441406571,0.42294532,2400.2,2399.9,3.29674]
[1725441407070,0.42294532,2400.2,2399.8,4.01465]
[1725441407071,0.41672,2400.0,2399.8,4.01465]
[1725441407270,0.41672,2400.0,2399.8,0.80685]
[1725441407466,0.79492,2400.1,2399.8,0.80685]
[1725441408070,0.3782,2400.1,2399.9,0.41674]
[1725441408275,0.79491,2400.1,2399.8,0.80685]
[1725441409176,0.41673,2400.0,2399.8,0.3901]
[1725441409375,0.79491,2400.1,2399.8,0.80685]
[1725441409580,0.41672,2400.0,2399.8,0.80685]
[1725441409771,0.79491,2400.1,2399.8,0.80685]
[1725441410370,0.3782,2400.1,2399.9,0.41674]
[1725441410575,0.79491,2400.1,2399.8,0.3901]
[1725441411082,0.41673,2400.0,2399.8,0.80686]
[1725441411384,0.41673,2400.0,2399.8,0.3901]
[1725441411579,0.3854,2400.0,2399.8,0.3901]
[1725441411881,0.41674,2399.9,2399.7,3.251]
[1725441412072,0.41674,2399.9,2399.7,1.571]
[1725441412478,0.41676,2399.8,2399.7,1.571]
[1725441413484,0.41675,2399.9,2399.7,1.571]
[1725441413890,0.41676,2399.8,2399.7,1.571]
[1725441414387,0.41675,2399.9,2399.7,1.571]
[1725441414584,0.41675,2399.9,2399.7,1.98777]
[1725441417674,0.3854,2400.0,2399.8,0.41675]
[1725441417675,0.80213,2400.0,2399.8,0.41675]
[1725441418586,0.41674,2399.9,2399.7,1.98776]
[1725441420990,0.3854,2400.0,2399.5,3.2078]
[1725441421182,0.41682,2399.5,2399.3,1.18164]
[1725441421587,0.77741,2399.6,2399.4,0.41682]
[1725441421787,0.3606,2399.6,2399.5,0.41681]
[1725441422289,4.5278,2399.6,2399.5,0.41681]
[1725441422492,0.41678,2399.7,2399.6,0.41679]
[1725441422693,0.41678,2399.7,2399.5,0.4168]
[1725441422892,0.41678,2399.7,2399.6,0.41679]
[1725441423098,0.41678,2399.7,2399.5,0.41681]
[1725441423389,0.41679,2399.6,2399.5,0.41681]
[1725441423588,0.3606,2399.8,2399.4,1.61681]
[1725441423589,0.41681,2399.5,2399.4,1.61681]
[1725441423990,0.41681,2399.5,2399.4,1.2]
[1725441424784,0.77801,2399.5,2399.4,1.2]
[1725441425396,0.77801,2399.5,2399.4,1.61683]
[1725441425594,0.3612,2399.5,2399.4,1.61683]
[1725441425994,0.77801,2399.5,2399.4,1.61683]
[1725441426491,0.77801,2399.5,2399.4,1.2]
[1725441426691,0.77801,2399.5,2399.4,1.61683]
[1725441427191,0.41683,2399.4,2399.3,1.18164]
[1725441427493,0.41683,2399.4,2399.3,2.38164]
[1725441427795,0.79783,2399.4,2399.3,2.38164]
[1725441428192,0.79784,2399.4,2399.2,4.82465]
[1725441428388,0.41685,2399.3,2399.2,3.2078]
[1725441428588,0.41688,2399.1,2399.0,0.7681]
[1725441428787,0.41692,2398.9,2398.8,0.00416352]
[1725441429387,0.79792,2398.9,2398.8,0.42109352]
[1725441429596,0.79792,2398.9,2398.8,0.00416352]
[1725441430308,1.84022,2398.9,2398.8,0.00416352]
[1725441431302,6.00902,2398.9,2398.8,0.00416352]
[1725441432191,12.00902,2398.9,2398.8,0.00416352]
[1725441432490,9.43916133,2398.9,2398.8,0.00416352]
[1725441433204,9.21682,2398.9,2398.8,0.00416352]
[1725441433501,0.79792,2398.9,2398.8,0.00416352]
[1725441437299,0.381,2398.9,2398.8,0.00416352]
[1725441437506,0.79792,2398.9,2398.8,0.00416352]
[1725441437691,3.2078,2399.2,2398.8,0.00416352]
[1725441437893,0.41687,2399.2,2399.0,0.41689]
[1725441438308,4.58487,2399.2,2399.0,0.41689]
[1725441438603,4.58487,2399.2,2398.9,0.791]
[1725441438807,0.41687,2399.2,2398.9,0.791]
[1725441439398,0.3646,2399.3,2398.9,0.3741]
[1725441439604,0.3609,2399.4,2399.2,0.41686]
[1725441439811,3.2078,2399.5,2399.3,0.79203]
[1725441440000,3.2078,2399.5,2399.4,0.3844]
[1725441440195,1.15741,2399.6,2399.4,0.3844]
[1725441442802,0.41681,2399.5,2399.4,0.3844]
[1725441443506,1.1574,2399.6,2399.4,0.3844]
[1725441444010,0.7406,2399.6,2399.4,0.3844]
[1725441444409,0.41681,2399.5,2399.3,0.3752]
[1725441444705,1.15741,2399.6,2399.3,0.3752]
[1725441445407,0.3797,2399.6,2399.3,0.3752]
[1725441445610,0.41679,2399.7,2399.4,0.78312]
[1725441445908,0.41679,2399.6,2399.5,0.3888]
[1725441446707,0.41682,2399.5,2399.3,0.3752]
[1725441447009,0.81032,2399.5,2399.3,0.3752]
[1725441447601,0.41682,2399.5,2399.3,0.3752]
[1725441448501,0.3646,2399.7,2399.6,0.41679]
[1725441448809,0.92058584,2399.8,2399.6,0.41679]
[1725441449106,0.92058584,2399.8,2399.7,0.78808]
[1725441449313,0.3597,2399.9,2399.7,0.3713]
[1725441449314,0.77644,2399.9,2399.7,0.3713]
[1725441449611,0.41676,2399.8,2399.7,0.3713]
[1725441450708,4.58396,2399.8,2399.7,0.3713]
[1725441452020,0.41676,2399.8,2399.7,0.3713]
[1725441452201,0.41678,2399.7,2399.4,3.29682]
[1725441452398,0.41678,2399.7,2399.4,3.66762]
[1725441453105,0.41677,2399.8,2399.5,0.41681]
[1725441453306,0.41677,2399.8,2399.5,3.62461]
[1725441454208,0.41677,2399.8,2399.5,3.6246]
[1725441454810,1.40643,2400.0,2399.4,3.66762]
[1725441454811,0.41678,2399.7,2399.4,3.66762]
[1725441455114,0.4168,2399.6,2399.4,0.78762]
[1725441455503,0.41679,2399.7,2399.4,0.78762]
[1725441455705,0.41679,2399.6,2399.4,0.78762]
[1725441456809,0.3581,2399.8,2399.4,0.78762]
[1725441457007,0.41678,2399.7,2399.4,0.78762]
[1725441458009,0.4168,2399.6,2399.4,0.3708]
[1725441458618,0.41681,2399.5,2399.4,0.3708]
[1725441458820,0.41681,2399.5,2399.3,0.7595]
[1725441459008,0.41681,2399.5,2399.2,6.50465]
[1725441459009,0.41685,2399.3,2399.2,3.2078]
[1725441461415,1.45897,2399.3,2399.2,3.2078]
[1725441461712,0.4169,2399.0,2398.9,0.097]
[1725441461915,1.04217,2399.2,2398.8,0.00416352]
[1725441461916,0.41692,2398.9,2398.8,0.00416352]
[1725441463215,5.62802,2398.9,2398.8,0.00416352]
[1725441464315,1.45922,2398.9,2398.8,0.00416352]
[1725441464512,5.62802,2398.9,2398.8,0.00416352]
[1725441468214,8.50802,2398.9,2398.8,0.00416352]
[1725441469615,4.33922,2398.9,2398.8,0.00416352]
[1725441470525,8.50802,2398.9,2398.8,0.00416352]
[1725441471022,4.33922,2398.9,2398.8,0.00416352]
[1725441474621,0.41692,2398.9,2398.8,0.00416352]
[1725441478323,3.29692,2398.9,2398.8,0.00416352]
[1725441478517,8.50802,2398.9,2398.8,0.00416352]
[1725441480915,3.29692,2398.9,2398.8,0.00416352]
[1725441481326,7.46572,2398.9,2398.8,0.00416352]
[1725441481527,8.50802,2398.9,2398.8,0.00416352]
[1725441483928,6.82802,2398.9,2398.8,0.00416352]
[1725441484124,4.58572,2398.9,2398.8,0.00416352]
[1725441484427,1.61692,2398.9,2398.8,0.00416352]
[1725441484631,5.78572,2398.9,2398.8,0.00416352]
[1725441485026,1.61692,2398.9,2398.8,0.00416352]
[1725441485227,2.65922,2398.9,2398.8,0.00416352]
[1725441486818,6.82802,2398.9,2398.8,0.00416352]
[1725441487826,0.41698,2398.6,2398.4,4.4085]
[1725441488023,0.41698,2398.5,2398.4,4.3115]
[1725441489529,1.98388,2398.6,2398.4,4.3115]
[1725441489731,0.41698,2398.5,2398.4,4.3115]
[1725441491439,1.61698,2398.6,2398.4,4.3115]
[1725441491739,0.41698,2398.5,2398.4,4.3115]
[1725441491931,1.61698,2398.6,2398.4,4.3115]
[1725441492235,0.00624532,2398.7,2398.4,4.3115]
[1725441492435,0.00624532,2398.7,2398.6,0.41697]
[1725441492832,0.097,2399.2,2398.7,1.04238]
[1725441493032,0.92058584,2399.4,2399.0,3.2078]
[1725441493234,0.92058584,2399.4,2399.1,0.3654]
[1725441493434,0.41685,2399.3,2399.1,0.3654]
[1725441493737,2.53742584,2399.4,2399.2,0.3582]
[1725441493938,0.41685,2399.3,2399.2,0.3582]
[1725441494830,0.36934532,2399.5,2399.2,0.77506]
[1725441495029,0.00624532,2399.5,2399.4,0.41683]
[1725441495237,0.00624532,2399.5,2399.4,1.61683]
[1725441495540,0.42305532,2399.5,2399.4,4.168]
[1725441495837,0.41688,2399.1,2399.0,0.3582]
[1725441497439,0.41687,2399.2,2399.0,0.3582]
[1725441497634,2.88624532,2399.5,2399.0,0.3582]
[1725441497635,0.41686,2399.3,2399.0,0.3582]
[1725441497835,0.41687,2399.2,2399.0,0.3582]
[1725441498544,0.41693,2398.8,2398.7,3.2078]
[1725441499029,0.41693,2398.8,2398.7,7.3766]
[1725441499636,2.88,2399.1,2398.7,7.3766]
[1725441499637,0.41693,2398.9,2398.7,7.3766]
[1725441499939,0.41693,2398.8,2398.7,3.2078]
[1725441500332,0.41693,2398.8,2398.7,7.3766]
[1725441500537,0.41693,2398.8,2398.7,3.2078]
[1725441501043,0.41693,2398.8,2398.2,2.98324532]
[1725441501044,0.41702,2398.3,2398.2,0.10324532]
[1725441501246,0.41701,2398.4,2398.2,0.00624532]
[1725441501742,2.88,2398.5,2398.2,0.42328532]
[1725441501743,0.417,2398.5,2398.2,0.42328532]
[1725441502247,0.417,2398.4,2398.2,0.00624532]
[1725441504047,0.41702,2398.3,2398.2,0.00624532]
[1725441504348,4.66738,2398.3,2398.2,0.00624532]
[1725441504548,4.88977271,2398.3,2398.2,0.00624532]
[1725441504859,0.41702,2398.3,2398.2,0.00624532]
[1725441506137,0.63942351,2398.3,2398.2,0.00624532]
[1725441506341,3.29702,2398.3,2398.2,0.00624532]
[1725441506545,0.41711,2397.8,2397.7,0.097]
[1725441506846,0.41712,2397.8,2397.5,0.77835]
[1725441507040,0.4171,2397.9,2397.6,0.41713]
[1725441508237,0.41711,2397.8,2397.5,0.36744532]
[1725441508545,0.41711,2397.8,2397.6,0.41714]
[1725441509149,0.41711,2397.8,2397.6,4.58754]
[1725441509344,0.41711,2397.8,2397.6,0.41714]
[1725441509746,0.41711,2397.8,2397.6,4.58754]
[1725441510345,0.00624532,2398.0,2397.7,0.41712]
[1725441510346,0.4171,2397.9,2397.7,0.41712]
[1725441510746,0.42332532,2398.0,2397.8,0.4171]
[1725441510947,0.097,2398.5,2397.9,3.646]
[1725441511147,4.34717,2398.8,2398.3,0.41701]
[1725441511354,4.34717,2398.8,2398.4,0.3569]
[1725441511355,0.41699,2398.5,2398.4,0.3569]
[1725441511554,1.04237,2398.8,2398.4,0.3569]
[1725441511750,0.41698,2398.5,2398.4,0.3569]
[1725441511946,0.41697,2398.6,2398.4,0.7739]
[1725441512144,0.41698,2398.5,2398.4,0.3569]
[1725441512549,0.41698,2398.5,2398.4,4.5265]
[1725441514151,0.41698,2398.6,2398.4,5.3319]
[1725441514345,0.41698,2398.5,2398.4,1.1623]
[1725441514550,0.41698,2398.6,2398.4,1.1623]
[1725441514746,0.00624532,2398.7,2398.6,0.41697]
[1725441515050,0.41697,2398.6,2398.4,1.16229]
[1725441515251,0.41698,2398.5,2398.4,0.7453]
[1725441516553,0.41698,2398.6,2398.4,1.16229]
[1725441517353,0.00624532,2398.7,2398.4,1.16229]
[1725441517354,0.42320532,2398.7,2398.5,0.41698]
[1725441517549,0.00624532,2398.7,2398.4,0.7453]
[1725441517750,0.41697,2398.6,2398.4,1.16229]
[1725441518759,0.41698,2398.5,2398.4,0.7453]
[1725441522460,0.41698,2398.5,2398.4,0.3569]
[1725441525260,1.45945,2398.5,2398.4,0.3569]
[1725441533066,0.41704,2398.2,2398.1,0.7641]
[1725441534564,0.41704,2398.2,2398.1,0.3937]
[1725441535768,0.41703,2398.3,2398.1,0.81075]
[1725441536464,0.41704,2398.2,2398.1,0.3937]
[1725441541665,0.41703,2398.3,2398.1,0.81075]
[1725441542080,0.41704,2398.2,2398.1,0.3937]
[1725441544181,0.41707,2398.0,2397.9,0.7515]
[1725441544684,0.41707,2398.1,2397.9,1.16858]
[1725441544871,0.41705,2398.2,2398.0,0.41706]
[1725441545576,0.41705,2398.1,2398.0,0.41706]
[1725441545984,0.41703,2398.3,2398.0,4.1704]
[1725441546281,1.2,2398.4,2398.1,0.41704]
[1725441546282,0.41704,2398.2,2398.1,0.41704]
[1725441546481,4.4078,2398.2,2397.7,1.63569543]
[1725441546682,4.4078,2398.2,2397.5,0.10324532]
[1725441546683,1.46,2397.6,2397.5,0.10324532]
[1725441546980,1.46,2397.6,2397.5,0.00624532]
[1725441546981,3.30582121,2397.6,2397.5,0.00624532]
[1725441547381,0.64007651,2397.6,2397.5,0.00624532]
[1725441547680,1.84007651,2397.6,2397.5,0.00624532]
[1725441548075,0.64007651,2397.6,2397.5,0.00624532]
[1725441549480,0.41714,2397.6,2397.5,0.00624532]
[1725441549681,0.64723073,2398.1,2397.8,0.4171]
[1725441549897,6.0878,2398.3,2397.9,1.1221]
[1725441550178,0.64008356,2398.0,2397.9,1.1221]
[1725441550384,4.89057356,2398.0,2397.9,0.3756]
[1725441550876,9.06097356,2398.0,2397.9,0.3756]
[1725441551076,9.06097356,2398.0,2397.5,0.10324532]
[1725441551077,15.06097356,2398.0,2397.5,0.10324532]
[1725441551279,15.06097356,2398.0,2397.5,0.00624532]
[1725441551280,0.41714,2397.6,2397.5,0.00624532]
[1725441551774,0.41714,2397.6,2397.5,0.38184532]
[1725441553088,3.2078,2397.9,2397.5,0.38184532]
[1725441553280,0.41712,2397.8,2397.6,0.41714]
[1725441553480,1.04271,2398.0,2397.6,0.41714]
[1725441553884,0.41713,2397.7,2397.5,0.38184532]
[1725441554091,0.41714,2397.6,2397.5,0.38184532]
[1725441554591,0.41713,2397.7,2397.5,4.55304532]
[1725441554887,0.41713,2397.7,2397.5,0.38184532]
[1725441555083,0.41714,2397.6,2397.5,0.00624532]
[1725441559292,8.839,2397.6,2397.5,0.00624532]
[1725441564085,5.6312,2397.6,2397.5,0.00624532]
[1725441564281,8.839,2397.6,2397.5,0.00624532]
[1725441566197,8.839,2397.6,2397.2,1.1264]
[1725441566198,0.41719,2397.3,2397.2,1.1264]
[1725441566388,1.46018,2397.3,2397.2,1.1264]
[1725441568387,0.41723,2397.1,2397.0,3.21404532]
[1725441568590,0.41723,2397.1,2397.0,0.00624532]
[1725441568591,1.46031,2397.1,2397.0,0.00624532]
[1725441572190,0.41723,2397.1,2397.0,0.00624532]
[1725441573089,1.04301,2397.3,2397.0,0.00624532]
[1725441573090,0.41722,2397.2,2397.0,0.00624532]
[1725441573502,3.2078,2397.4,2397.1,0.41722]
[1725441573503,0.41718,2397.4,2397.1,0.41722]
[1725441573690,0.00624532,2397.5,2397.0,3.30348532]
[1725441573890,0.41719,2397.4,2397.1,0.41723]
[1725441574297,0.4172,2397.3,2397.0,3.30347532]
[1725441574591,0.41723,2397.1,2397.0,0.00624532]
[1725441575202,7.54811,2397.1,2397.0,0.00624532]
[1725441575504,11.72011,2397.1,2397.0,0.00624532]
[1725441575699,3.62503,2397.1,2397.0,0.00624532]
[1725441575900,3.2078,2397.1,2397.0,0.00624532]
[1725441576290,0.41723,2397.1,2397.0,0.00624532]
[1725441578703,1.46031,2397.1,2397.0,0.00624532]
[1725441579298,5.63231,2397.1,2397.0,0.00624532]
[1725441579495,1.46031,2397.1,2397.0,0.00624532]
[1725441579695,0.41723,2397.1,2397.0,0.00624532]
[1725441581508,3.2078,2397.3,2397.0,0.00624532]